Cogmind - Beta 15 @@@ ROGUE MODE // 2025.08.03 @ 11:26:30 Player: ToBeDefined Result: Destroyed by IN-TOQ(h) with Bolt Gun Performance ------------- Evolutions (0) 0 Regions Visited (4) 800 Robots Destroyed (33) 165 Value Destroyed (627) 627 Prototype IDs (1) 20 Alien Tech Used (0) 0 Bonus (917) 917 TOTAL SCORE: 2529 Bonus ------- Follower Combat Kills 124 Registered with UFD 300 Met Optimus in HQ 500 Friendly Fire -7 Cogmind --------- Core Integrity 0/250 Matter 300/300 Energy 100/100 System Corruption 0% Temperature Cool (0) Movement Core (350) Ox6 Location -8/Scraptown Parts ------- > --- POWER (1) -------- (None) > --- PROPULSION (2) --- (None) > --- UTILITY (2) ------ Large Storage Unit > --- WEAPON (2) ------- (None) > --- INVENTORY (15) --- Improved Ion Engine Light Treads Light Treads Light Treads Heat Sink Light Armor Plating Light Armor Plating A0-MCA's Component Scanner Overtuned Pulse Rifle Heavy Assault Rifle High-powered Shotgun Peak State ------------ > --- POWER ------------ Light Nuclear Core > --- PROPULSION ------- Light Treads Light Treads > --- UTILITY ---------- Large Storage Unit Experimental Sensor Array > --- WEAPON ----------- Makeshift Shrapnel Gun Light Cannon > --- INVENTORY -------- Improved Ion Engine Light Treads Light Treads Light Treads Light Treads Light Armor Plating Light Armor Plating Light Armor Plating Light Armor Plating EM Pulse Gun Beam Rifle Beam Cannon Heavy Assault Rifle Light Cannon Mining Claw [Rating: 21] Favorites ----------- Power Light Nuclear Core Engine Ion Engine Power Core Light Nuclear Core Propulsion Light Treads Treads Light Treads Utility Large Storage Unit Device Heat Sink Storage Large Storage Unit Protection Light Armor Plating Weapon Makeshift Shrapnel Gun Energy Gun EM Pulse Gun Energy Cannon Beam Cannon Ballistic Gun Makeshift Shrapnel Gun Ballistic Cannon Flak Cannon Launcher Rocket Launcher Slashing Weapon Mining Claw Build | -11 -10 -10 -10 -8 ------- Run | Yrd Mat Min Sub Scr Slots Evolved . | . . . . . Power . | . . . . . Propulsion . | . . . . . Utility . | . . . . . Weapon . | . . . . . Parts Attached 31 | 6 12 5 . 8 Power 4 | 1 2 1 . . Engine 3 | 1 2 . . . Core 1 | . . 1 . . Reactor . | . . . . . Propulsion 6 | 2 1 . . 3 Treads 6 | 2 1 . . 3 Leg . | . . . . . Wheel . | . . . . . Hover . | . . . . . Flight . | . . . . . Utility 8 | 1 2 3 . 2 Device 2 | . 1 1 . . Storage 3 | 1 1 . . 1 Processor . | . . . . . Hackware . | . . . . . Protection 3 | . . 2 . 1 Artifact . | . . . . . Weapon 13 | 2 7 1 . 3 Energy Gun 3 | 1 2 . . . Energy Cannon 1 | . 1 . . . Ballistic Gun 4 | 1 2 1 . . Ballistic Cannon 3 | . 1 . . 2 Launcher 1 | . . . . 1 Special Weapon . | . . . . . Impact Weapon . | . . . . . Slashing Weapon 1 | . 1 . . . Piercing Weapon . | . . . . . Special Melee Weapon . | . . . . . Unidentified Prototypes 1 | . . 1 . . Parts Lost 8 | . . . . 8 Power 1 | . . . . 1 Propulsion 2 | . . . . 2 Utility 2 | . . . . 2 Weapon 3 | . . . . 3 Highest Loss Streak 3 | . . . . 3 To Critical Strikes . | . . . . . Average Backups 13 | 5 10 15 15 14 Power 1 | . 1 1 1 1 Propulsion 3 | 3 3 3 4 3 Utility 3 | . 1 4 4 4 Weapon 5 | 1 4 6 6 5 Tool/Special . | . . . . . Unused Backups 31 | . 14 4 . 13 Power 6 | . 3 2 . 1 Propulsion 8 | . 4 . . 4 Utility 6 | . 4 . . 2 Weapon 11 | . 3 2 . 6 Tool/Special . | . . . . . Average Slot Usage (%) 98 | . 99 100 100 96 Engine 4 | . 14 . . . Core 9 | . . 13 14 12 Treads 27 | . 28 28 28 27 Device 5 | . 13 5 . . Storage 14 | . 14 14 14 14 Protection 8 | . . 8 14 13 Energy Cannon 2 | . 8 . . . Ballistic Gun 12 | . 13 10 14 12 Ballistic Cannon 11 | . 5 14 14 14 Peak Build Rating 21 | 6 8 21 13 20 Average Rating 12 | 5 7 12 13 16 On Entrance 8 | . 6 8 13 13 Naked Turns . | . . . . . Heaviest Build 37 | 11 31 33 33 37 Greatest Support 45 | 40 40 40 40 45 Greatest Overweight (x) 9 | 1 . . . 9 Average Overweight (x) . | . . . . . Largest Inventory Capacity 15 | 8 15 15 15 15 Average Capacity 13 | 7 10 15 15 15 Most Carried 15 | 7 15 15 15 15 Average Carried 13 | 5 10 14 15 14 Final Capacity 15 | 8 15 15 15 15 Final Carried 15 | 7 15 15 15 11 Class Distribution -------------------- 100% | Mutant Dominant Class ---------------- Mutant | -10/Materials Mutant | -10/Mines Mutant | -10/Subcaves Mutant | -8/Scraptown Resources | -11 -10 -10 -10 -8 ----------- Run | Yrd Mat Min Sub Scr Matter Collected 934 | 270 213 109 10 332 Remotely . | . . . . . Salvage Created 957 | 134 585 22 . 216 Parts 58 | 7 34 5 . 12 Haulers Intercepted 2 | . 2 . . . Recyclers Shooed . | . . . . . Parts Field Recycled . | . . . . . Retrieved Matter . | . . . . . Parts Self-Destructed 15 | . . . 13 2 Prevented . | . . . . . Kills | -11 -10 -10 -10 -8 ------- Run | Yrd Mat Min Sub Scr Combat Hostiles Destroyed 24 | . 16 2 . 6 Guns 5 | . 2 2 . 1 Cannons 19 | . 14 . . 5 Classes Destroyed 12 | 2 5 . . 5 Worker 1 | . 1 . . . Tunneler 2 | 2 . . . . Hauler 2 | . 2 . . . Recycler 2 | 1 1 . . . Watcher 1 | . 1 . . . Swarmer 11 | . 9 2 . . Grunt 8 | . 7 . . 1 Bolteater 1 | . . . . 1 Federalist 2 | . . . . 2 Explorer 1 | . . . . 1 Ranger 1 | . . . . 1 Guru 1 | . . . . 1 Best Kill Streak 3 | 2 3 2 . 3 Combat Bots Only 3 | . 3 2 . 3 Max Kills in Single Turn 1 | 1 1 1 . 1 Gunslinging . | . . . . . Exploded . | . . . . . Melee . | . . . . . Uniques/NPCs Destroyed . | . . . . . Combat | -11 -10 -10 -10 -8 -------- Run | Yrd Mat Min Sub Scr Hostile Shots Fired 217 | . 72 3 3 139 Missed 56 | . 21 1 1 33 Hits 161 | . 51 2 2 106 Melee 22 | . . . . 22 Projectile 139 | . 51 2 2 84 Critical Strikes 1 | . 1 . . . Damage Taken 1655 | 28 534 14 16 1063 Core 257 | . 96 . 10 151 Absorbed by Shields . | . . . . . Core Remaining (%) 100 | 100 . . . . Volleys Fired 92 | 10 51 2 1 28 Largest 2 | 2 2 2 1 2 Hottest 80 | 60 80 54 30 70 Shots Fired 172 | 20 102 4 1 45 Gun 82 | 20 51 2 . 9 Cannon 90 | . 51 2 1 36 Launcher . | . . . . . Special . | . . . . . Kinetic 126 | 10 66 4 1 45 Thermal 35 | . 35 . . . Explosive . | . . . . . Electromagnetic 11 | 10 1 . . . Robot Hit Streak 12 | 9 12 3 . 7 Robot Miss Streak 9 | 2 4 3 2 9 Penetration Max . | . . . . . Secondary Targets . | . . . . . Shots Hit Robots 111 | 15 61 2 . 33 Core Hits 72 | 5 28 2 . 37 Critical Kills . | . . . . . Critical Parts Destroyed 1 | . 1 . . . Critical Strikes 1 | . 1 . . . Destroy 1 | . 1 . . . Melee Attacks 3 | . 3 . . . Impact . | . . . . . Slashing 3 | . 3 . . . Piercing . | . . . . . Sneak Attacks . | . . . . . Combat Hostiles . | . . . . . Follow-up Attacks . | . . . . . Damage Inflicted 1843 | 221 947 33 . 642 Guns 553 | 159 260 33 . 101 Cannons 1205 | . 664 . . 541 Explosions 85 | 62 23 . . . Melee . | . . . . . Ramming . | . . . . . Kinetic 1157 | 53 429 33 . 642 Thermal 556 | 62 494 . . . Explosive . | . . . . . Electromagnetic 130 | 106 24 . . . Impact . | . . . . . Slashing . | . . . . . Piercing . | . . . . . Highest Corruption . | . . . . . Average Corruption . | . . . . . Corruption Purged . | . . . . . Corruption Blocked . | . . . . . Overload Shots . | . . . . . Overflow Damage 18 | . . . . 18 Projectiles 18 | . . . . 18 Explosions . | . . . . . Melee . | . . . . . Knockbacks 16 | . 2 . . 14 Impact . | . . . . . Kinetic 16 | . 2 . . 14 Secondary . | . . . . . Self-Inflicted Damage 59 | 28 31 . . . Shots 2 | 1 1 . . . Rammed . | . . . . . Targets Rammed . | . . . . . Kicked . | . . . . . Crushed . | . . . . . Highest Temperature 282 | 52 54 18 . 282 Average Temperature 76 | 18 20 9 . 134 Received Heat Transfer 576 | . 192 . . 384 Effects 3 | . . . . 3 Energy Bleed 3 | . . . . 3 Siege Activations . | . . . . . Martial Activations . | . . . . . Shielding Activations . | . . . . . Robots Disrupted . | . . . . . Combat Hostiles . | . . . . . Robots Corrupted . | . . . . . Combat Hostiles . | . . . . . Parts Fried . | . . . . . Impact Corruptions . | . . . . . Robots Melted . | . . . . . Combat Hostiles . | . . . . . Parts Melted 4 | . 2 . . 2 Heat Transferred 1149 | 100 1049 . . . Parts Sabotaged . | . . . . . Parts Stolen 2 | . . . . 2 Parts Stripped . | . . . . . Power Chain Reactions 3 | 2 1 . . . Alert | -11 -10 -10 -10 -8 ------- Run | Yrd Mat Min Sub Scr Maximum Alert Level 1 | . 1 . . . Low Security (%) 98 | 100 98 100 . . Level 1 1 | . 1 . . . Level 2 . | . . . . . Level 3 . | . . . . . Level 4 . | . . . . . Level 5 . | . . . . . High Security . | . . . . . Max Security . | . . . . . Peak Influence 209 | 10 209 96 . . Initial 6 | . . 6 . . Average 22 | . 30 13 . . Influence Increases 796 | 15 546 154 81 . Destroy 0b10 Robot/C 480 | . 320 100 60 . Destroy 0b10 Robot/NC 40 | 15 25 . . . Destroy Leader 96 | . 66 20 10 . Allied During Kill 30 | . . 19 11 . Successful Hack 26 | . 26 . . . Disable Machine 30 | . 15 15 . . Destroy Structure 4 | . 4 . . . Partial Spotted 15 | . 15 . . . Lose Combat Pursuer 75 | . 75 . . . Influence Decreases 796 | 15 529 171 10 71 Entered New Map 82 | . . 11 . 71 Time Decay 564 | 15 379 160 10 . Purge Threat 150 | . 150 . . . Squads Dispatched 2 | . 2 . . . Investigation 2 | . 2 . . . Extermination . | . . . . . Reinforcement . | . . . . . Assault . | . . . . . Garrison . | . . . . . Intercept . | . . . . . Searches Triggered . | . . . . . Construction Impeded . | . . . . . Haulers Reinforced . | . . . . . Active Scanning Responses . | . . . . . Cargo Convoy Interrupts . | . . . . . Stealth | -11 -10 -10 -10 -8 --------- Run | Yrd Mat Min Sub Scr Distress Signals 2 | . 2 . . . Communications Jammed . | . . . . . Distress Signals . | . . . . . Times Spotted 67 | . 33 5 3 26 Peak Tracking Total 5 | . 5 3 3 5 Tactical Retreats 3 | . 3 . . . Traps | -11 -10 -10 -10 -8 ------- Run | Yrd Mat Min Sub Scr Traps Triggered 1 | . 1 . . . Indirectly . | . . . . . Trap Hack Attempts . | . . . . . Triggered . | . . . . . Disarmed 4 | . 4 . . . Reprogrammed . | . . . . . Reused . | . . . . . Traps Extracted . | . . . . . Installed . | . . . . . Triggered . | . . . . . Machines | -11 -10 -10 -10 -8 ---------- Run | Yrd Mat Min Sub Scr Machines Disabled 2 | . 1 1 . . Max in Single Turn 1 | . 1 1 . . Machines Repaired . | . . . . . Machines Dismantled . | . . . . . Machines Sabotaged . | . . . . . Overloaded Fab Kills . | . . . . . Hacking | -11 -10 -10 -10 -8 --------- Run | Yrd Mat Min Sub Scr Machines Accessed 15 | . 9 . . 6 Terminals 7 | . 7 . . . Fabricators . | . . . . . Repair Stations . | . . . . . Recycling Units 2 | . 2 . . . Scanalyzers . | . . . . . Garrison Access . | . . . . . Total Hacks 69 | . 24 . . 45 Successful 57 | . 12 . . 45 Failed 12 | . 12 . . . Catastrophic . | . . . . . Database Lockouts . | . . . . . Manual . | . . . . . Terminals 21 | . 21 . . . Fabricators . | . . . . . Repair Stations . | . . . . . Recycling Units 3 | . 3 . . . Scanalyzers . | . . . . . Garrison Access . | . . . . . Terminal Hacks 56 | . 11 . . 45 Record 45 | . . . . 45 Robot Analysis 1 | . 1 . . . Branch Access Points 1 | . 1 . . . Emergency Access Points 1 | . 1 . . . Alert Level 2 | . 2 . . . Unreport Threat 1 | . 1 . . . Disarm Traps 1 | . 1 . . . Maintenance Status 1 | . 1 . . . Recall Investigation 1 | . 1 . . . Hauler Manifests 1 | . 1 . . . Zone Layout 1 | . 1 . . . Fabricator Hacks . | . . . . . Repair Station Hacks . | . . . . . Recycling Unit Hacks 1 | . 1 . . . Retrieve Components 1 | . 1 . . . Scanalyzer . | . . . . . Garrison Access Hacks . | . . . . . Unauthorized Hacks . | . . . . . Terminals . | . . . . . Fabricators . | . . . . . Repair Stations . | . . . . . Recycling Units . | . . . . . Scanalyzers . | . . . . . Garrison Access . | . . . . . Data Cores Recovered . | . . . . . Used . | . . . . . Hacking Detections 8 | . 8 . . . Full Trace Events 1 | . 1 . . . Feedback Events . | . . . . . Feedback Blocked . | . . . . . Robot Schematics Acquired . | . . . . . Robots Built . | . . . . . Authchips . | . . . . . Time . | . . . . . Total Robot Build Rating . | . . . . . Part Schematics Acquired . | . . . . . Parts Built . | . . . . . Authchips . | . . . . . Time . | . . . . . Total Part Build Rating . | . . . . . Parts Repaired . | . . . . . Time . | . . . . . Parts Recycled . | . . . . . Recycled Matter . | . . . . . Retrieved Matter . | . . . . . Retrieved Components 6 | . 6 . . . Parts Scanalyzed . | . . . . . Part Schematics Acquired . | . . . . . Parts Damaged . | . . . . . Bothacking | -11 -10 -10 -10 -8 ------------ Run | Yrd Mat Min Sub Scr Used RIF Installer . | . . . . . Robots Hacked . | . . . . . Non-combat . | . . . . . Combat . | . . . . . Robot Hacks Applied . | . . . . . Relay Couplers Released . | . . . . . Fabnet Peak Effective % . | . . . . . Robots Rewired . | . . . . . Allies Hacked . | . . . . . Hacks Repelled . | . . . . . Allies | -11 -10 -10 -10 -8 -------- Run | Yrd Mat Min Sub Scr Total Allies 3 | . . 3 . . Largest Group 3 | . . 3 3 3 Highest-Rated Group 40 | . . 40 40 40 Highest-Rated Ally 16 | . . 16 16 16 Total Orders 11 | . . 4 4 3 GUARD 9 | . . 3 3 3 AID 2 | . . 1 1 . Ally Attacks 18 | . . 6 8 4 Total Damage 196 | . . 74 75 47 Kills 7 | . . 3 3 1 Allies Corrupted . | . . . . . Allies Melted 6 | . . . . 6 Intel | -11 -10 -10 -10 -8 ------- Run | Yrd Mat Min Sub Scr Active Infowar (turns) . | . . . . . Robot Analysis Total 1 | . 1 . . . Derelict Logs Recovered 2 | . . 2 . . Drone Launches . | . . . . . Drone Recoveries . | . . . . . Exploration | -11 -10 -10 -10 -8 ------------- Run | Yrd Mat Min Sub Scr Turns Passed 6937 | 171 1970 1335 129 3332 Spaces Moved 3945 | 81 991 768 67 2038 Core 5 | 2 . . . 3 Treads 3940 | 79 991 768 67 2035 Legs . | . . . . . Wheels . | . . . . . Hover . | . . . . . Flight . | . . . . . Fastest Speed 50 | 50 160 160 160 145 Average Speed 158 | 157 160 160 160 157 Slowest Speed 500 | 160 160 160 160 500 Overloaded Moves . | . . . . . Propulsion Burnouts . | . . . . . Robots Hopped . | . . . . . Potential Cave-ins . | . . . . . Cave-ins Triggered . | . . . . . Exploration Rate (%) 59 | 5 97 100 7 89 Regions Visited 4 Branch Regions 3 Pre-discovered Areas 1 | . . 1 . . Known Exits Taken 1 | . 1 . . . Unknown Exits Taken 3 | 1 . 1 1 . Scrap Searched 10 | . . 2 . 8 Spaces Dug 2 | . 2 . . . Terrain Destroyed 15 | 12 3 . . . Melee 2 | . 2 . . . Projectile . | . . . . . AOE 13 | 12 1 . . . Terrain Rammed . | . . . . . Walls Destroyed . | . . . . . Machines Disabled . | . . . . . Actions | -11 -10 -10 -10 -8 --------- Run | Yrd Mat Min Sub Scr Total 4472 | 103 1287 872 88 2122 Wait 306 | . 172 82 21 31 Move 3941 | 80 990 767 66 2038 Hop . | . . . . . Pick Up 50 | 7 29 8 . 6 Fast Attach 11 | 6 4 . . 1 Attach 5 | . . 1 . 4 Detach . | . . . . . Swap 17 | . 9 4 . 4 Drop 47 | . 29 8 . 10 Fire 92 | 10 51 2 1 28 Melee 3 | . 3 . . . Ram . | . . . . . Kick . | . . . . . Crush . | . . . . . Escape Stasis . | . . . . . Rewire . | . . . . . Trap . | . . . . . Miscellaneous . | . . . . . Route ------- -11/Scrapyard -10/Materials (discovered 6 exits: [*Mat x3] / *Min x2 / [*Sub]) -10/Mines (discovered 3 exits: [*Mat x2] / [*Sub]) -10/Subcaves (discovered 3 exits: [*Mat] / Rec / *Scr) -8/Scraptown (discovered 2 exits: [*Fac x2]) History --------- Turn | Location | Event 33 | -11/Scrapyard | Discovered new exit (range 15) 172 | -11/Scrapyard | Entered Materials 308 | -10/Materials | Build established: Mutant 388 | -10/Materials | Discovered new exit (range 13) 430 | -10/Materials | Identified exit to Mines 489 | -10/Materials | Discovered new exit (range 13) 824 | -10/Materials | Discovered new exit (range 11) 909 | -10/Materials | Discovered new exit (range 8) 1308 | -10/Materials | Discovered new exit (range 16) 2142 | -10/Materials | Entered Mines 2184 | -10/Mines | Assisted by bots powering up and referring to "LRC-V3" 2226 | -10/Mines | Discovered new exit (range 15) 2440 | -10/Mines | A weapon hastily lodged in a ceiling crevice suddenly fell to the ground 2672 | -10/Mines | Joined a pair of Derelicts in attacking an 0b10 outpost 2982 | -10/Mines | Discovered new exit (range 6) 3036 | -10/Mines | Learned location of Storage (-8) 3110 | -10/Mines | Found a damaged Exp. Sensor Array with a note attached 3114 | -10/Mines | Found Prototype Device 3115 | -10/Mines | Identified Exp. Sensor Array 3419 | -10/Mines | Discovered new exit (range 6) 3477 | -10/Mines | Entered Subcaves 3477 | -10/Subcaves | Accompanied by 3 allies 3478 | -10/Subcaves | Approached by a straggling Scientist 3478 | -10/Subcaves | Identified exit to Recycling 3518 | -10/Subcaves | Discovered new exit (range 11) 3577 | -10/Subcaves | Scientist uncovered a shortcut to Scraptown 3606 | -10/Subcaves | Entered Scraptown 3606 | -8/Scraptown | Accompanied by 3 allies 3634 | -8/Scraptown | Heard Great Nut preacher, LISTEN AND RECITE! 3969 | -8/Scraptown | Visited Cave Peace 4070 | -8/Scraptown | Visited UFD Registry 4070 | -8/Scraptown | Registered with UFD as "Gaussplate" 4256 | -8/Scraptown | Visited The Evicted 4304 | -8/Scraptown | Visited TADAMA 4376 | -8/Scraptown | Visited Symbiants 4456 | -8/Scraptown | Discovered new exit (range 5) 5275 | -8/Scraptown | Visited Bundlers 5383 | -8/Scraptown | Visited Red Mages 5447 | -8/Scraptown | Visited Cyclists 5459 | -8/Scraptown | Entered Cyclist Reading Room 5986 | -8/Scraptown | Visited Botcube Research 6020 | -8/Scraptown | Visited Chapter 10 6073 | -8/Scraptown | Visited Scrapoid Pod Storage 6325 | -8/Scraptown | Visited A0-MCA Data Center 6334 | -8/Scraptown | Given a B+ rating by A0-MCA 6337 | -8/Scraptown | Found A0-MCA's Component Scanner 6368 | -8/Scraptown | Visited Analyses Database 6410 | -8/Scraptown | Met Optimus 6410 | -8/Scraptown | Accepted into 0bPrime 6523 | -8/Scraptown | Civil war broke out across Scraptown 6569 | -8/Scraptown | Core integrity fell below 50% 6630 | -8/Scraptown | Core integrity fell below 20% 6633 | -8/Scraptown | Lost 8 allies 6686 | -8/Scraptown | Discovered new exit (range 10) 6738 | -8/Scraptown | Lost 5 allies 6788 | -8/Scraptown | Optimus destroyed in the chaos of civil war 6938 | -8/Scraptown | Destroyed by IN-TOQ(h) with Bolt Gun Last Messages --------------- SL-5BC(E) cannibalizes Ovr. Treads to repair Ovr. Treads. PC-U71(j) cannibalizes Lgt. Deuterium Engine to repair Lgt. Deuterium Engine. PC-U71(j) cannibalizes Corrupted Lgt. Deuterium Engine to repair Lgt. Deuterium Engine. PC-U71(j) cannibalizes Ion Engine to repair Lgt. Deuterium Engine. Penetrated by Bolt. Bolt penetrates Wall. Bolt penetrates Machine. Penetrated by Bolt. Adv. Treads destroyed. Bolt penetrates Wall. Penetrated by Bolt. Flak Cannon destroyed. Bolt penetrates Wall. Penetrated by Bolt. Lgt. Armor Plating destroyed. Penetrated by Bolt. Map ----- +----------------------------------------------------+ | "" = [ "%!! X"#????????????? | | " ######### # =%! "#!=" #????????????? | | " "" ""#??????###" ]= ## """"#????????????? | | "" "" ##????????#" %== % #########????????????? | | X"#????????#""! %! "#????????????????????? | | ##????????#"" !%= "############?????????? | | ## ################" % % &## """""""""#????????? | | """""""""""""""""""""" % %[%## ""!""""""#????????? | | """"""""""""" " """"" """""""""#????????? | | ! %! = ! ## /""""#????????? | | !%=! [% !!%"## """"#????????? | | !=[= ! != [!![="## " """"#????????? | | =%!*% =%*!%!!=[%![## """""""""#????????? | | =*=!= !!%!!!!%==*%# """""""""#????????? | | """""" """" """"" "*""="%%=##""""""""""#????????? | | ###### ########### #####%!!=############?????????? | | ?# #??? ??##=%!###??????????????????? | | ?### "#?#" "##!!%# #??????????????????? | | ??# ""#?#" "#=!%[;#???????????????????? | | ??# """"#?#" ! "#=!%%;#???????????????????? | | ??# " ""#?#""""""" #!![ ;#???????????????????? | | ??# """"#?##########; ###########?????????? | | ??# ""#??????????#; ! #?????????? | | ??# ""#??????????#; % %= ##?????????? | | ??## " #??????????#; ! = #?????????? | | ?#""""""""""#??????????##@%! #?????????? | | ?############???????????# %% #?????????? | | ????????????????????????#h![############?????????? | | ######################### ! #####????????????????? | | #"""##"""##"""##"""##"|"#%! """"#????????????????? | | # ""##" "##"""##"" ##" #% "" "#????????????????? | | ! "#????????????????? | | " "#????????????????? | | ! ! %!""""#????????????????? | | #"""##"" ##" "##!!%##"" ##[######????????????????? | | #"""##"""##"""##"""##"""##;#?????????????????????? | | #########################?##?????????????????????? | | ?????????????????????????????????????????????????? | | ?????????????????????????????????????????????????? | | ?????????????????????????????????????????????????? | | ?????????????????????????????????????????????????? | | ?????????????????????????????????????????????????? | | ?????????????????????????????????????????????????? | | ?????????????????????????????????????????????????? | | ?????????????????????????????????????????????????? | | ?????????????????????????????????????????????????? | | ?????????????????????????????????????????????????? | | ?????????????????????????????????????????????????? | | ?????????????????????????????????????????????????? | | ?????????????????????????????????????????????????? | +----------------------------------------------------+ Best States ------------- Heat Dissipation 35 Energy Generation 14 Energy Capacity 250 Matter Stores 300 Matter Capacity 300 Sight Range 16 Terrain Scan Density 10 Armor Coverage 150 Evasion (%) 40 Recoil Reduction 2 Item Schematics ----------------- None Robot Schematics ------------------ None Fabricated ------------ Nothing Repaired ---------- Nothing Alien Tech Used ----------------- None Achievements -------------- None Challenges ------------ None Game ------ Seed GreatPlatingInverter Manual? 0 Play Time 01:21:54 Cumulative 22.5 hours Start 2025.07.25 @ 22:34:19 End 2025.08.03 @ 11:26:30 Sessions 3 Manual Loads 0 Difficulty Rogue Special Mode None Game No. 22 Rogue 22 Adventurer 0 Explorer 0 Win Type - Total 0 Types 0/0/0/0/0/0/0/0/0/0 Lore% 18 Gallery% 17 Achievement% 17 Wizard Run 0 Options --------- Layout 1 ASCII 0 Keyboard 0 Movement Mouse Keybinds 0 Fullscreen 1 Font 24/Smallcaps Map View 50x35 Zoom Use 0% Tactical HUD 0 Map Filters NONE Filters NONE Steam 1 RUN: 72c11530-41b9-4f63-b73c-c06daf63a62e